bitfinex/quotes_ETHUSD_20240816
["timestamp","ask_amount","ask_price","bid_price","bid_amount"]
[1723825017474,3.86701,2586.0,2585.3,3.86799]
[1723825017475,3.86724,2585.9,2585.3,3.86799]
[1723825017806,3.86727,2585.8,2585.4,0.09422082]
[1723825018163,3.86773,2585.5,2585.1,0.40391728]
[1723825018359,3.86759,2585.6,2585.1,0.40391728]
[1723825018597,3.86755,2585.7,2585.1,0.40391728]
[1723825018900,3.86734,2585.8,2585.1,0.40391728]
[1723825019111,3.86811,2585.3,2585.1,0.40391728]
[1723825019310,3.86811,2585.3,2584.5,8.12631]
[1723825019462,7.73627,2585.3,2584.6,3.86906]
[1723825019670,3.86779,2585.5,2584.9,3.86852]
[1723825019911,3.86779,2585.5,2584.6,1.044556]
[1723825019912,3.86719,2585.9,2585.1,3.8682]
[1723825020123,3.86692,2586.1,2585.2,0.38682]
[1723825020265,3.86692,2586.1,2585.5,3.8677]
[1723825020266,7.73385,2586.1,2585.5,3.8677]
[1723825020466,1.001895,2586.1,2585.5,3.8677]
[1723825020673,3.8667,2586.2,2585.6,3.86745]
[1723825021203,3.8667,2586.2,2585.6,3.94479365]
[1723825021405,3.8667,2586.2,2585.5,3.8677]
[1723825021406,3.86612,2586.6,2585.9,3.86698]
[1723825021584,3.86639,2586.4,2585.9,3.86698]
[1723825021782,3.05993746,2586.2,2585.6,0.38677]
[1723825021970,3.05993746,2586.2,2585.6,3.38677]
[1723825022177,3.86597,2586.7,2585.3,3.868]
[1723825022178,3.8671,2586.0,2585.3,3.868]
[1723825022371,3.86673,2586.2,2585.4,3.0]
[1723825022607,3.86528,2587.2,2585.8,2.3495]
[1723825022913,3.86528,2587.2,2586.0,3.86688]
[1723825022914,3.8661,2586.6,2586.0,3.86688]
[1723825023128,2.2557,2587.4,2585.9,3.86709]
[1723825023129,3.86555,2587.0,2586.1,0.07732921]
[1723825023311,2.2557,2587.4,2586.6,3.866]
[1723825023312,3.86527,2587.2,2586.6,3.866]
[1723825023632,3.86624,2586.5,2586.0,3.621659]
[1723825023919,7.73257,2586.5,2585.9,3.86709]
[1723825024127,3.86553,2587.0,2585.7,3.0]
[1723825024128,3.86676,2586.2,2585.7,3.0]
[1723825024428,3.86642,2586.4,2585.7,3.0]
[1723825024429,3.86642,2586.4,2585.8,6.86717]
[1723825024574,2.336,2586.6,2585.5,4.16766]
[1723825024776,2.336,2586.6,2585.5,4.16762]
[1723825024777,3.86645,2586.4,2585.5,4.16762]
[1723825024993,3.86495,2587.4,2585.5,4.16762]
[1723825024994,2.336,2587.2,2585.6,3.07733789]
[1723825025196,6.20127,2587.2,2586.5,3.86613]
[1723825025403,6.20123,2587.2,2586.6,3.86598]
[1723825025926,0.4078,2587.5,2586.6,3.86599]
[1723825026129,2.336,2587.6,2586.6,3.86599]
[1723825026130,3.86506,2587.3,2586.8,3.86573]
[1723825026333,3.86506,2587.3,2586.6,3.86595]
[1723825026540,3.86506,2587.3,2586.9,0.09314754]
[1723825026693,3.86485,2587.5,2586.8,3.86574]
[1723825026894,0.005,2588.0,2587.0,0.09307604]
[1723825027094,0.005,2588.0,2586.9,3.86562]
[1723825027095,3.86482,2587.5,2586.9,3.86562]
[1723825027329,3.86454,2587.7,2587.1,0.0929206]
[1723825027494,0.30262252,2588.0,2587.1,3.94249691]
[1723825027693,3.86443,2587.7,2587.2,0.09284911]
[1723825027931,3.86488,2587.4,2586.7,0.53465]
[1723825028106,0.386443,2587.7,2586.6,3.0]
[1723825028107,3.86529,2587.2,2586.6,3.0]
[1723825028312,0.386488,2587.4,2586.5,23.48614]
[1723825028632,3.86557,2587.0,2586.5,19.62]
[1723825028831,3.86557,2587.0,2586.3,29.94]
[1723825029036,3.86557,2587.0,2586.4,6.86636]
[1723825029237,3.86549,2587.0,2586.4,3.86626]
[1723825029410,3.86535,2587.1,2586.3,30.80642]
[1723825029738,3.86573,2586.9,2586.3,30.80642]
[1723825030038,3.86511,2587.3,2586.5,3.86611]
[1723825030194,6.22991,2587.5,2586.4,3.86627]
[1723825030398,6.22991,2587.5,2586.9,3.86558]
[1723825030829,3.86527,2587.2,2586.5,6.86609]
[1723825031137,7.72995,2587.4,2586.8,3.86577]
[1723825031438,7.72995,2587.4,2586.6,3.0]
[1723825031439,3.86545,2587.1,2586.6,3.0]
[1723825031595,3.86545,2587.1,2586.3,30.8065]
[1723825031596,3.86556,2587.0,2586.3,30.8065]
[1723825031798,3.86569,2586.9,2586.3,26.94]
[1723825031993,3.86569,2586.9,2586.3,30.80652]
[1723825032235,3.86594,2586.7,2586.3,26.94]
[1723825032393,3.86602,2586.7,2586.1,3.86673]
[1723825032600,3.86598,2586.7,2586.1,3.86673]
[1723825032831,2.3651,2587.5,2586.1,3.86673]
[1723825032832,3.86548,2587.0,2586.4,3.86629]
[1723825033037,3.86543,2587.1,2586.5,3.86611]
[1723825033329,3.86511,2587.3,2586.5,3.86611]
[1723825033330,3.86511,2587.3,2586.5,3.86609]
[1723825033633,3.86511,2587.3,2586.3,3.86643]
[1723825033634,3.86575,2586.9,2586.3,3.86643]
[1723825033836,3.86575,2586.9,2586.3,3.8664]
[1723825034036,3.86541,2587.1,2586.5,3.86622]
[1723825034437,0.386511,2587.2,2586.3,5.82844]
[1723825034738,2.60161,2587.5,2586.3,9.69488]
[1723825034739,3.86572,2586.9,2586.3,9.69488]
[1723825035047,3.86564,2586.9,2586.3,9.69489]
[1723825035203,3.86564,2586.9,2586.4,3.86637]
[1723825035522,3.86564,2586.9,2586.3,5.82841]
[1723825035728,3.86537,2587.1,2586.5,3.86621]
[1723825035903,7.73083,2587.1,2586.5,3.86621]
[1723825036544,3.86439,2587.8,2586.5,3.86621]
[1723825036545,2.3491,2587.9,2586.6,3.07731921]
[1723825036757,2.3491,2587.9,2586.9,3.8656]
[1723825036758,3.86473,2587.5,2586.9,3.8656]
[1723825037238,7.72955,2587.5,2586.9,3.8656]
[1723825037448,3.86473,2587.5,2586.9,3.8656]
[1723825037759,2.3491,2587.9,2586.7,19.62]
[1723825037760,3.86527,2587.2,2586.7,19.62]
[1723825038049,3.86554,2587.0,2586.6,3.0]
[1723825038201,3.86431,2587.8,2586.4,19.62]
[1723825038202,3.86563,2586.9,2586.4,19.62]
[1723825038402,0.386563,2586.9,2585.6,2.3312]
[1723825038611,6.33312,2587.2,2586.0,3.86686]
[1723825038612,3.86615,2586.6,2586.0,3.86686]
[1723825038856,3.86581,2586.8,2586.1,3.86672]
[1723825039061,3.86609,2586.6,2585.6,2.3312]
[1723825039348,3.86609,2586.6,2586.0,3.86697]
[1723825039548,3.86609,2586.6,2585.6,2.3312]
[1723825039549,3.86586,2586.8,2585.6,2.3312]
[1723825039701,3.86616,2586.6,2586.0,3.86687]
[1723825039900,3.86616,2586.6,2586.0,7.73375]
[1723825040138,3.86616,2586.6,2586.0,3.86687]
[1723825040445,3.86579,2586.8,2586.2,3.86666]
[1723825040600,3.86579,2586.8,2586.0,0.773405]
[1723825040601,0.24679,2587.1,2586.0,3.86687]
[1723825040797,0.24679,2587.1,2585.9,3.0]
[1723825040798,7.73293,2586.4,2586.1,3.0]
[1723825041152,7.73293,2586.4,2585.9,3.0]
[1723825041153,3.86629,2586.5,2585.9,6.86698]
[1723825041299,3.86614,2586.6,2586.0,4.553567]
[1723825041504,3.86614,2586.6,2586.1,3.0]
[1723825041714,3.86614,2586.6,2586.1,3.09347844]
[1723825041955,3.86614,2586.6,2586.1,6.96023844]
[1723825042433,3.8658,2586.8,2586.3,3.86651]
[1723825042601,3.8658,2586.8,2586.1,4.24485898]
[1723825042801,3.86622,2586.5,2586.4,0.0932638]
[1723825043041,0.24679,2587.1,2585.6,6.19867]
[1723825043042,3.86561,2587.0,2585.7,3.07733611]
[1723825043249,6.33309,2587.2,2586.4,0.0932638]
[1723825043408,10.831759,2587.2,2586.5,3.86612]
[1723825043603,3.8659,2586.8,2586.5,0.09319227]
[1723825043826,3.8659,2586.8,2585.5,0.40347055]
[1723825043827,3.86644,2586.4,2585.5,0.40347055]
[1723825044031,0.38659,2586.8,2586.6,0.09312074]
[1723825044032,2.4144,2586.7,2586.6,0.09312074]
[1723825044227,3.86686,2586.1,2585.6,3.86749]
[1723825044458,3.86699,2586.0,2585.4,3.86774]
[1723825044623,3.86699,2586.0,2585.7,0.0937647]
[1723825044624,3.86721,2585.9,2585.7,0.0937647]
[1723825044831,3.86746,2585.7,2585.3,0.40327541]
[1723825045754,3.86812,2585.3,2584.9,19.62]
[1723825045923,3.86812,2585.3,2584.7,16.03882]
[1723825045924,3.86812,2585.3,2584.7,23.48882]
[1723825046138,3.86841,2585.1,2584.5,3.86916]
[1723825046335,3.86841,2585.1,2584.6,3.86904]
[1723825046728,3.86873,2584.9,2584.2,3.86957]
[1723825046925,3.86882,2584.8,2584.3,3.86949]
[1723825048445,3.86848,2585.0,2584.3,3.86949]
[1723825048769,3.86863,2584.9,2584.3,3.86943]
[1723825049138,3.86881,2584.8,2584.2,0.628517]
[1723825049339,3.86853,2585.0,2584.4,3.86934]
[1723825049565,3.86853,2585.0,2584.3,0.7498247]
[1723825049772,3.86853,2585.0,2584.3,3.86938]
[1723825050070,3.86863,2584.9,2584.3,3.86938]
[1723825050868,3.86899,2584.7,2584.1,4.2721919]
[1723825051176,3.86819,2585.2,2584.2,3.86966]
[1723825051177,3.86878,2584.8,2584.2,3.86966]
[1723825051375,3.8687,2584.9,2584.1,3.86974]
[1723825051376,3.86896,2584.7,2584.1,7.73947]
[1723825051554,3.86896,2584.7,2584.1,3.86973]
[1723825051759,3.86896,2584.7,2584.0,2.4156]
[1723825051760,3.86893,2584.7,2583.9,3.87003]
[1723825051954,4.25557,2584.9,2584.0,0.07739203]
[1723825052159,3.8687,2584.9,2583.9,2.349003]
[1723825052355,3.86901,2584.7,2584.1,3.86972]
[1723825052541,3.86877,2584.8,2584.3,3.86942]
[1723825052753,3.869,2584.7,2584.1,4.2968944]
[1723825052979,7.73806,2584.7,2584.1,0.4272244]
[1723825053151,6.16465,2585.3,2583.8,22.62]
[1723825053152,3.86936,2584.5,2583.8,26.49013]
[1723825053360,3.86936,2584.5,2583.9,6.87009]
[1723825053567,3.86936,2584.5,2584.0,3.86994]
[1723825053739,3.869,2584.7,2584.0,3.86994]
[1723825053740,7.73805,2584.7,2584.0,3.86994]
[1723825053947,3.869,2584.7,2584.0,3.86986]
[1723825054148,3.86871,2584.9,2584.3,3.8695]
[1723825054765,3.86878,2584.8,2584.2,3.86958]
[1723825055148,3.86892,2584.7,2584.2,3.86958]
[1723825055349,3.86909,2584.6,2584.0,23.48984]
[1723825055550,3.86909,2584.6,2584.0,27.35972]
[1723825055775,0.386871,2584.9,2584.2,3.86955]
[1723825055776,4.255521,2584.9,2584.2,3.86955]
[1723825056051,3.86885,2584.8,2584.2,3.86955]
[1723825056450,3.86797,2585.4,2584.3,22.0271]
[1723825056683,3.86796,2585.4,2584.8,3.86875]
[1723825056884,6.26762,2585.8,2584.5,23.48914]
[1723825056885,3.86831,2585.2,2584.5,23.48914]
[1723825057084,3.86831,2585.2,2584.9,0.09181023]
[1723825057085,3.86847,2585.0,2584.9,0.09181023]
[1723825057373,3.86712,2585.9,2584.9,0.09181023]
[1723825057575,3.86772,2585.5,2584.9,3.86847]
[1723825057749,3.86712,2585.9,2585.0,0.09173861]
[1723825057961,3.86832,2585.1,2584.5,19.62]
[1723825058172,3.86802,2585.4,2585.1,0.091667]
[1723825058376,4.253085,2586.4,2584.5,19.62]
[1723825058377,3.86776,2585.5,2584.5,19.62]
[1723825058595,3.86802,2585.3,2585.2,0.09159539]
[1723825058752,3.86818,2585.2,2584.7,3.86882]
[1723825058948,3.86818,2585.2,2584.5,23.48908]
[1723825059193,7.73644,2585.2,2584.6,3.86905]
[1723825059366,3.86818,2585.2,2584.7,3.86889]
[1723825059687,3.86794,2585.4,2584.8,3.86875]
[1723825059897,3.86783,2585.5,2584.9,3.8686]
[1723825060067,3.86735,2585.8,2585.2,3.86816]
[1723825060265,2.4688,2586.3,2585.0,6.31043]
[1723825060266,3.86766,2585.6,2585.0,6.31043]
[1723825060466,3.86766,2585.6,2585.1,0.29063221]
[1723825060685,3.86752,2585.7,2585.2,3.86815]
[1723825060991,3.86759,2585.6,2585.1,0.29063221]
[1723825061199,3.8679,2585.4,2584.8,23.48867]
[1723825061372,3.8679,2585.4,2584.9,6.86854]
[1723825061894,3.86804,2585.3,2584.9,3.0]
[1723825062059,3.86773,2585.5,2585.0,3.86843]
[1723825062389,3.86737,2585.8,2585.0,3.86844]
[1723825062588,3.14815625,2586.1,2585.0,3.86844]
[1723825062589,3.86766,2585.6,2585.0,3.86844]
[1723825062966,3.86775,2585.5,2585.0,3.86846]
[1723825063168,0.45937563,2585.9,2584.9,3.0]
[1723825063364,2.4214,2586.1,2584.9,3.0]
[1723825063365,3.8681,2585.3,2584.9,3.0]
[1723825063690,7.73566,2585.5,2584.9,6.8686]
[1723825063894,3.86759,2585.6,2585.0,3.86833]
[1723825064100,3.86759,2585.6,2585.0,6.904066]
[1723825064317,3.86759,2585.6,2585.1,3.8683]
[1723825065063,3.86741,2585.8,2585.1,3.8683]
[1723825065309,3.86741,2585.8,2585.3,3.86801]
[1723825065518,3.86742,2585.7,2585.1,3.8683]
[1723825065688,3.86758,2585.6,2584.9,6.86853]
[1723825065993,3.86773,2585.5,2584.9,13.385911]
[1723825066196,3.86773,2585.5,2585.0,3.86843]
[1723825066396,3.86758,2585.6,2585.1,3.86827]
[1723825066563,3.86758,2585.6,2585.0,0.9517381]
[1723825066758,3.8676,2585.6,2585.1,3.86823]
[1723825066964,3.86738,2585.8,2585.3,3.86799]
[1723825067297,3.86738,2585.8,2585.3,3.86794]
[1723825067915,3.86738,2585.8,2585.2,3.86815]
[1723825068206,3.86738,2585.8,2585.3,3.86801]
[1723825068408,3.86744,2585.7,2585.2,0.44330951]
[1723825068607,3.86744,2585.7,2585.1,7.73638]
[1723825069163,3.86738,2585.8,2585.2,3.86817]
[1723825069700,3.86774,2585.5,2585.1,1.39501161]
[1723825069895,7.73557,2585.5,2584.9,9.517351]
[1723825070061,3.86812,2585.3,2584.7,19.62]
[1723825070263,2.3954,2585.6,2584.9,3.86859]
[1723825070264,3.86779,2585.5,2584.9,3.86859]
[1723825070467,3.86779,2585.5,2584.7,7.98665]
[1723825070676,3.86802,2585.3,2584.7,7.98665]
[1723825070875,3.86802,2585.3,2584.8,3.86874]
[1723825071508,7.73614,2585.3,2584.9,0.09161583]
[1723825071726,3.86802,2585.3,2584.9,0.09161583]
[1723825072177,3.86802,2585.3,2585.0,0.09154421]
[1723825072501,3.8678,2585.5,2585.0,3.86845]
[1723825072687,2.3436,2586.0,2585.2,3.86808]
[1723825072865,3.86782,2585.5,2585.1,0.09186111]
[1723825073062,3.86782,2585.5,2585.3,0.0917179]
[1723825073267,3.86753,2585.7,2585.2,0.09178951]
[1723825073500,3.8675,2585.7,2585.4,0.09164631]
[1723825073681,7.735,2585.7,2585.3,0.0917179]
[1723825073999,7.735,2585.7,2585.4,0.09164631]
[1723825074200,7.735,2585.7,2585.1,3.86823]
[1723825074405,3.8675,2585.7,2585.5,0.09157472]
[1723825074576,2.251,2586.6,2585.6,3.86754]
[1723825074779,2.251,2586.6,2585.6,0.09147161]
[1723825074780,3.86716,2585.9,2585.6,0.09147161]
[1723825074977,3.86716,2585.9,2585.4,3.86778]
[1723825075198,3.86716,2585.9,2585.7,0.09135014]
[1723825075394,3.86716,2585.9,2585.4,3.86778]
[1723825075622,7.73387,2586.1,2585.8,0.09127856]
[1723825075830,6.11712,2586.6,2585.2,24.9563]
[1723825075831,2.251,2586.6,2585.2,24.9563]
[1723825076117,3.86774,2585.5,2585.0,11.18838]
[1723825076319,3.86774,2585.5,2584.8,22.62]
[1723825076320,3.86738,2585.8,2585.2,3.86816]
[1723825076524,3.86713,2585.9,2585.2,3.86816]
[1723825076525,3.86742,2585.7,2585.2,3.86816]
[1723825076722,3.86758,2585.6,2585.1,3.86832]
[1723825076886,3.86774,2585.5,2584.9,3.479]
[1723825077243,3.86774,2585.5,2584.8,28.97114]
[1723825077446,3.86774,2585.5,2585.0,3.86837]
[1723825077659,3.86774,2585.5,2585.0,7.73676]
[1723825077818,3.86774,2585.5,2585.0,3.86837]
[1723825078422,3.86774,2585.5,2584.8,28.97115]
[1723825078678,3.86825,2585.2,2584.6,3.86892]
[1723825078963,3.86825,2585.2,2584.7,3.86884]
[1723825079168,3.86765,2585.6,2584.8,0.07736921]
[1723825079316,3.86761,2585.6,2585.1,3.86828]
[1723825079683,10.33117,2586.6,2585.2,3.86815]
[1723825079684,3.86723,2585.9,2585.2,3.86815]
[1723825079970,3.86723,2585.9,2584.8,2.3282]
[1723825079971,3.86779,2585.5,2584.9,7.737]
[1723825080283,3.86779,2585.5,2584.9,7.73703]
[1723825080422,3.86788,2585.4,2584.6,2.9365]
[1723825080752,0.386779,2585.5,2584.6,2.9365]
[1723825080753,3.86826,2585.2,2584.7,3.0]
[1723825080952,3.86849,2585.0,2584.5,3.86912]
[1723825081118,3.86849,2585.0,2584.6,3.0]
[1723825081522,3.8687,2584.9,2584.6,3.0]
[1723825081722,3.8687,2584.9,2584.5,3.0]
[1723825082858,3.86849,2585.0,2584.5,3.0]
[1723825082859,3.86847,2585.0,2584.5,6.8692]
[1723825083161,6.18419,2585.4,2584.7,2.487]
[1723825083162,3.86798,2585.4,2584.7,2.487]
[1723825083455,3.86768,2585.6,2585.0,3.86836]
[1723825083657,3.86768,2585.6,2585.2,3.86816]
[1723825083859,2.3766,2585.9,2584.9,7.73708]
[1723825084030,3.86781,2585.5,2585.0,3.86844]
[1723825084235,3.86753,2585.7,2585.1,3.86831]
[1723825084432,3.86752,2585.7,2584.8,0.635603]
[1723825084647,3.86752,2585.7,2585.3,3.868]
[1723825084860,3.8674,2585.8,2585.3,3.868]
[1723825085056,6.14543,2586.2,2585.1,3.86824]
[1723825085057,3.86766,2585.6,2585.1,3.86824]
[1723825085285,3.86765,2585.6,2585.1,3.86829]
[1723825085486,3.86795,2585.4,2584.9,3.86851]
[1723825085903,3.86793,2585.4,2584.9,7.73705]
[1723825086069,3.86793,2585.4,2584.9,3.86851]
[1723825086272,3.86802,2585.3,2584.9,3.86851]
[1723825086570,2.764265,2585.6,2585.0,0.09205618]
[1723825086880,6.24412,2586.3,2585.0,0.09205618]
[1723825087064,3.8669,2586.1,2585.4,3.86772]
[1723825087263,3.8669,2586.1,2585.4,4.254492]
[1723825087570,3.8669,2586.1,2585.5,0.09170868]
[1723825087770,3.86698,2586.0,2585.5,3.95934868]
[1723825088180,3.8669,2586.1,2585.6,3.86755]
[1723825088380,3.867,2586.0,2585.6,3.95918184]
[1723825088583,6.465,2586.6,2585.8,3.86726]
[1723825088584,2.4008,2586.6,2585.8,3.86726]
[1723825088769,3.86631,2586.5,2586.0,3.86689]
[1723825088984,3.86621,2586.6,2586.1,3.8668]
[1723825089162,3.86621,2586.6,2586.1,4.74051904]
[1723825089492,3.86616,2586.6,2586.1,0.09119521]
[1723825089654,3.86631,2586.5,2586.1,0.09119521]
[1723825089857,3.86639,2586.4,2586.1,0.09119521]
[1723825090054,3.86667,2586.3,2585.8,3.0]
[1723825090299,0.386616,2586.5,2585.6,3.86753]
[1723825090485,3.86675,2586.2,2585.6,3.86753]
[1723825090681,3.86675,2586.2,2585.7,3.0]
[1723825090869,3.86629,2586.5,2585.7,3.0]
[1723825091069,3.86629,2586.5,2585.7,0.3]
[1723825091393,3.8667,2586.2,2585.7,0.3]
[1723825091595,3.86654,2586.3,2585.8,3.86727]
[1723825091799,3.86669,2586.2,2585.7,3.0]
[1723825092159,3.86669,2586.2,2585.6,3.86746]
[1723825092160,3.86705,2586.0,2585.4,21.9865]
[1723825092384,2.3404,2586.3,2585.4,21.9865]
[1723825092385,3.86677,2586.2,2585.5,6.86758]
[1723825092715,3.86677,2586.2,2585.6,3.86753]
[1723825093423,3.86677,2586.2,2585.5,5.885408]
[1723825093424,3.86659,2586.3,2585.7,3.86734]
[1723825093582,3.86667,2586.2,2585.6,3.86749]
[1723825093788,3.86682,2586.1,2585.6,3.86749]
[1723825093990,3.86667,2586.2,2585.7,3.8674]
[1723825094522,3.86639,2586.4,2585.5,22.62]
[1723825094699,4.253036,2586.4,2585.5,25.11865]
[1723825094891,3.86616,2586.6,2585.5,25.11865]
[1723825094892,3.86616,2586.6,2586.0,3.86697]
[1723825095103,3.86593,2586.7,2586.0,3.86697]
[1723825095277,3.86593,2586.7,2586.0,6.19787]
[1723825095482,3.86593,2586.7,2586.2,3.86666]
[1723825095678,3.86593,2586.7,2586.2,7.73326]
[1723825095900,3.86593,2586.7,2586.2,3.8666]
[1723825096322,0.005,2586.8,2586.3,3.86644]
[1723825096637,0.005,2586.8,2586.1,23.48681]
[1723825096638,3.866,2586.7,2586.1,23.48681]
[1723825096783,3.86616,2586.6,2586.1,19.62]
[1723825096989,0.392071,2586.8,2586.1,19.62]
[1723825096990,3.86667,2586.2,2586.1,19.62]
[1723825097296,3.86667,2586.2,2585.5,6.86757]
[1723825097497,3.86667,2586.2,2585.6,3.86749]
[1723825098096,7.73315,2586.3,2585.7,3.86734]
[1723825098301,3.86654,2586.3,2585.7,3.86734]
[1723825098518,3.86676,2586.2,2585.7,3.86734]
[1723825099815,3.86683,2586.1,2585.5,6.86757]
[1723825099997,7.73379,2586.1,2585.5,26.48757]
[1723825100266,3.86683,2586.1,2585.6,3.86756]
[1723825101401,2.4942,2586.7,2585.5,30.29702125]
[1723825101402,3.86721,2585.9,2585.5,19.62]
[1723825101580,8.121501,2585.8,2585.7,0.09122411]
[1723825101754,3.86739,2585.8,2585.7,0.09122411]
[1723825102247,3.86743,2585.7,2585.2,19.62]
[1723825103200,3.86743,2585.7,2585.2,23.48809]
[1723825103374,3.86729,2585.8,2585.2,19.62]
[1723825103894,3.86729,2585.8,2585.3,3.86801]
[1723825104262,3.86748,2585.7,2585.2,19.62]
[1723825105064,3.86748,2585.7,2584.9,3.86851]
[1723825105065,3.8678,2585.5,2584.9,23.48847]
[1723825105262,3.86753,2585.7,2585.0,19.62]
[1723825105464,3.867,2586.0,2585.0,26.90947501]
[1723825105768,3.86791,2585.4,2585.0,19.62]
[1723825106168,3.86765,2585.6,2585.0,19.62]
[1723825106363,3.86737,2585.8,2585.0,19.62]
[1723825106364,3.86707,2586.0,2585.4,3.86781]
[1723825106581,2.3029,2586.1,2585.2,3.86808]
[1723825106582,3.86735,2585.8,2585.2,3.86808]
[1723825106783,2.3029,2586.1,2585.0,19.62]
[1723825106784,3.86797,2585.4,2585.0,19.62]
[1723825107020,3.86796,2585.4,2585.0,19.62]
[1723825107616,7.73592,2585.4,2585.0,19.62]
[1723825107982,7.73592,2585.4,2584.8,10.32]
[1723825107983,3.86796,2585.4,2584.8,22.62]
[1723825108294,3.86811,2585.3,2584.8,22.62]
[1723825108481,3.86767,2585.6,2584.9,3.86861]
[1723825108682,3.86767,2585.6,2584.8,25.89203]
[1723825108683,3.86737,2585.8,2585.3,3.86798]
[1723825108882,3.86753,2585.7,2585.2,3.86816]
[1723825109311,3.86753,2585.7,2585.0,3.86836]
[1723825109312,3.86753,2585.7,2585.0,7.73672]
[1723825109536,3.8679,2585.4,2584.8,23.02161077]
[1723825109686,3.86817,2585.2,2584.8,23.02161077]
[1723825109894,3.86817,2585.2,2584.8,22.62]
[1723825110122,3.8679,2585.4,2584.9,7.73709]
[1723825110437,3.8679,2585.4,2584.9,3.86848]
[1723825110438,3.86788,2585.4,2584.9,3.86848]
[1723825110637,3.86767,2585.6,2584.8,25.505161]
[1723825110943,2.4348,2585.9,2584.9,6.88926389]
[1723825110944,3.86788,2585.4,2584.9,6.88926389]
[1723825111138,3.86802,2585.3,2584.8,22.62]
[1723825111427,7.73558,2585.5,2584.9,3.86854]
[1723825111744,3.86776,2585.5,2585.0,3.86833]
[1723825112614,2.4588,2586.2,2585.2,3.86817]
[1723825112957,3.86699,2586.0,2585.5,3.86761]
[1723825113108,3.86653,2586.3,2585.6,3.8675]
[1723825113432,3.86689,2586.1,2585.6,3.8675]
[1723825114131,3.86689,2586.1,2585.5,3.86772]
[1723825114441,3.86689,2586.1,2585.4,3.86787]
[1723825114442,3.86727,2585.8,2585.4,3.86787]
[1723825114789,3.86713,2585.9,2585.4,3.86787]
[1723825115020,3.8669,2586.1,2585.4,22.355603]
[1723825115274,3.8666,2586.3,2585.6,3.86745]
[1723825115440,3.8666,2586.3,2585.4,19.62]
[1723825115441,3.86682,2586.1,2585.4,19.62]
[1723825115583,7.73374,2586.1,2585.5,3.86763]
[1723825115935,3.86698,2586.0,2585.5,3.86763]
[1723825116142,3.86682,2586.1,2585.5,3.86763]
[1723825116304,3.86676,2586.2,2585.6,3.86744]
[1723825116505,3.86676,2586.2,2585.7,3.86741]
[1723825116883,3.86683,2586.1,2585.8,0.09133899]
[1723825117087,3.86698,2586.0,2585.6,19.62]
[1723825117401,3.86698,2586.0,2585.9,0.09126742]
[1723825117621,3.86683,2586.1,2585.7,0.09141056]
[1723825117811,7.73376,2586.1,2585.7,0.09141056]
[1723825118109,3.86683,2586.1,2585.8,0.09133899]
[1723825118318,3.86661,2586.3,2585.8,0.09133899]
[1723825118319,3.86668,2586.2,2585.8,0.09133899]
[1723825118630,3.86668,2586.2,2585.7,3.86741]
[1723825118828,3.86668,2586.2,2585.9,0.09123592]
[1723825119068,3.86668,2586.2,2585.7,3.86741]
[1723825119268,3.86668,2586.2,2586.0,0.09116436]
[1723825119426,7.73346,2586.2,2585.6,29.82199]
[1723825119626,7.73346,2586.2,2586.1,0.0910928]
[1723825119826,3.86684,2586.1,2585.6,25.95449]
[1723825120027,3.86727,2585.8,2585.6,19.62]
[1723825120361,3.86742,2585.7,2585.6,19.62]
[1723825120776,3.86742,2585.7,2585.2,26.48809]
[1723825121140,3.86742,2585.7,2585.2,30.35618]
[1723825121477,10.15836,2586.0,2585.4,3.86774]
[1723825121628,3.86706,2586.0,2585.4,3.86774]
[1723825122076,3.86734,2585.8,2585.3,3.86798]
[1723825122233,3.86734,2585.8,2585.3,6.516846]
[1723825122567,3.86734,2585.8,2585.4,3.0]
[1723825122772,0.635834,2586.2,2585.4,6.86784]
[1723825122943,3.86724,2585.9,2585.4,3.0]
[1723825123124,3.86724,2585.9,2585.3,3.0]
[1723825123318,3.86751,2585.7,2585.3,3.0]
[1723825123524,3.86721,2585.9,2585.3,10.476349]
[1723825123725,3.8664,2586.4,2585.8,3.86715]
[1723825123971,3.8664,2586.4,2585.9,4.253755]
[1723825124725,0.005,2586.8,2586.3,3.86649]
[1723825124726,3.87086,2586.8,2586.3,3.86649]
[1723825124971,3.87086,2586.8,2586.4,0.386649]
[1723825124972,0.005,2586.8,2586.4,0.386649]
[1723825125126,0.005,2586.8,2586.6,3.86604]
[1723825125552,0.005,2586.8,2586.5,3.86614]
[1723825125925,0.005,2586.8,2586.4,20.006649]
[1723825126149,0.005,2586.8,2586.4,19.62]
[1723825126340,3.86622,2586.5,2586.4,19.62]
[1723825126561,3.87092,2586.8,2586.4,19.62]
[1723825126738,3.87091,2586.8,2586.4,19.62]
[1723825126942,3.86596,2586.7,2586.4,19.62]
[1723825127138,0.005,2586.8,2586.4,23.48637]
[1723825127338,0.005,2586.8,2586.4,25.834927]
[1723825127678,0.005,2586.8,2586.4,29.701197]
[1723825128447,0.005,2586.8,2586.5,3.86614]
[1723825128661,0.005,2586.8,2586.6,3.86604]
[1723825128943,0.005,2586.8,2586.4,25.834907]
[1723825128944,0.005,2586.8,2586.4,25.834867]
[1723825129453,0.005,2586.8,2586.6,3.86605]
[1723825130080,0.005,2586.8,2586.6,3.86607]
[1723825130257,0.005,2586.8,2586.4,6.17757]
[1723825130456,0.005,2586.8,2586.4,3.86627]